bitfinex/quotes_SOLUSD_20241126
["timestamp","ask_amount","ask_price","bid_price","bid_amount"]
[1732594750233,8.22132019,237.03,236.97,4.2199]
[1732594750536,8.22132019,236.98,236.9,4.2211]
[1732594750846,8.22132019,236.96,236.9,4.2211]
[1732594751056,8.22132019,236.95,236.9,4.2211]
[1732594751220,8.22132019,236.95,236.87,4.2217]
[1732594752742,8.22132019,236.95,236.88,8.22132019]
[1732594753038,8.22132019,236.95,236.88,20.0]
[1732594753241,8.22132019,236.93,236.87,24.2217]
[1732594753753,8.22132019,236.93,236.87,4.2217]
[1732594753924,8.22132019,236.93,236.87,24.2217]
[1732594754121,8.22132019,236.93,236.87,4.2217]
[1732594754430,8.22132019,236.91,236.85,4.2219]
[1732594754640,8.22132019,236.91,236.85,24.2219]
[1732594754827,8.22132019,236.91,236.85,20.0]
[1732594756354,8.22132019,236.95,236.86,8.22132019]
[1732594756642,8.22132019,236.95,236.87,4.2217]
[1732594758572,8.22132019,236.93,236.87,4.2217]
[1732594758873,8.22132019,236.93,236.85,4.2219]
[1732594759276,8.22132019,236.93,236.86,8.22132019]
[1732594760150,8.22132019,236.93,236.87,4.2217]
[1732594761464,12.44192019,236.93,236.85,4.2219]
[1732594762379,8.22132019,236.93,236.85,4.2219]
[1732594764479,4.2202,236.95,236.85,4.2219]
[1732594764775,8.22132019,236.93,236.85,4.2219]
[1732594765778,4.2202,236.95,236.85,4.2219]
[1732594765975,8.22132019,236.93,236.86,8.22132019]
[1732594766281,8.22132019,236.93,236.85,4.2219]
[1732594767485,8.22132019,236.95,236.88,8.22132019]
[1732594767681,15.6836,236.96,236.92,8.22132019]
[1732594767980,10.547,237.04,236.94,8.22132019]
[1732594767981,23.90492019,237.01,236.94,8.22132019]
[1732594768288,15.6836,237.01,236.96,8.22132019]
[1732594768769,8.22132019,237.03,236.96,8.22132019]
[1732594769591,10.52732697,237.04,236.97,4.2199]
[1732594769883,10.52732697,237.04,237.02,8.22132019]
[1732594770084,10.52732697,237.04,237.03,8.22132019]
[1732594771162,10.52732697,237.04,237.02,8.22132019]
[1732594771579,10.52732697,237.04,237.03,4.2188]
[1732594771888,10.52732697,237.04,237.03,12.44012019]
[1732594772401,10.52732697,237.04,237.03,17.04204588]
[1732594778000,6.3799,237.17,237.03,17.04204588]
[1732594778001,12.82324588,237.16,237.03,17.04204588]
[1732594778187,15.81,237.19,237.07,12.82324588]
[1732594778396,12.82324588,237.18,237.07,12.82324588]
[1732594778695,15.81,237.19,237.07,12.82324588]
[1732594779010,28.63324588,237.19,237.07,12.82324588]
[1732594779302,12.82324588,237.14,237.07,17.04134588]
[1732594780181,15.81,237.19,237.05,4.2183]
[1732594780182,12.82324588,237.12,237.05,4.2183]
[1732594780383,12.82324588,237.11,237.04,12.82324588]
[1732594780602,12.82324588,237.11,237.04,17.04174588]
[1732594785206,12.82324588,237.13,237.04,17.04174588]
[1732594786110,12.82324588,237.13,237.06,12.82324588]
[1732594786701,17.04034588,237.13,237.06,12.82324588]
[1732594787192,17.03994588,237.15,237.06,12.82324588]
[1732594787413,12.82324588,237.15,237.06,12.82324588]
[1732594788127,17.03994588,237.15,237.06,17.04134588]
[1732594788649,4.2167,237.15,237.06,17.04134588]
[1732594788810,17.03974588,237.17,237.06,17.04134588]
[1732594790811,4.2165,237.16,237.06,17.04134588]
[1732594794415,12.41980568,237.16,237.07,8.20330568]
[1732594795514,12.41980568,237.16,237.07,12.42140568]
[1732594797219,4.2167,237.15,237.07,12.42140568]
[1732594797533,12.42030568,237.14,237.07,8.20330568]
[1732594798236,15.81,237.19,237.07,12.42140568]
[1732594798412,12.42000568,237.15,237.07,12.42140568]
[1732594798839,12.42040568,237.13,237.05,12.42160568]
[1732594801140,8.20330568,237.13,237.05,8.20330568]
[1732594801328,4.2173,237.12,237.05,8.20330568]
[1732594801512,8.20330568,237.13,237.05,12.42170568]
[1732594801937,4.2169,237.15,237.07,8.20330568]
[1732594802438,8.20330568,237.16,237.07,8.20330568]
[1732594802439,8.20330568,237.17,237.07,8.20330568]
[1732594802643,4.2165,237.16,237.07,8.20330568]
[1732594802840,24.01330568,237.19,237.07,8.20330568]
[1732594803016,28.22930568,237.19,237.07,8.20330568]
[1732594803441,15.81,237.19,237.07,12.67238568]
[1732594803648,8.20330568,237.18,237.07,12.67238568]
[1732594803944,15.81,237.19,237.07,12.67238568]
[1732594804933,6.0708,237.24,237.08,0.12549]
[1732594805128,8.20330568,237.23,237.16,8.20330568]
[1732594805531,12.41860568,237.23,237.16,8.20330568]
[1732594806025,8.20330568,237.23,237.14,8.20330568]
[1732594806418,16.035,237.24,237.18,8.20330568]
[1732594806824,4.2144,237.28,237.18,8.20330568]
[1732594807043,22.3571,237.3,237.12,32.93871272]
[1732594807044,8.20330568,237.29,237.22,8.20330568]
[1732594807235,34.77440568,237.3,237.22,8.20330568]
[1732594807439,34.77440568,237.3,237.22,12.41870568]
[1732594807945,16.035,237.3,237.25,8.20330568]
[1732594808147,16.035,237.3,237.24,8.20330568]
[1732594808927,0.485149,237.32,237.25,8.20330568]
[1732594809147,0.485149,237.32,237.27,8.20330568]
[1732594809444,0.485149,237.32,237.28,8.20330568]
[1732594810239,0.485149,237.32,237.3,8.20330568]
[1732594811556,0.485149,237.32,237.29,8.20330568]
[1732594811744,8.68845468,237.32,237.25,24.2149]
[1732594812131,8.20330568,237.3,237.23,8.20330568]
[1732594812336,8.20330568,237.3,237.21,8.20330568]
[1732594812756,0.485149,237.32,237.23,8.20330568]
[1732594812942,8.20330568,237.29,237.22,8.20330568]
[1732594813150,8.20330568,237.3,237.22,8.20330568]
[1732594813743,8.20330568,237.3,237.22,12.41870568]
[1732594813945,0.485149,237.32,237.24,8.20330568]
[1732594814141,8.20330568,237.31,237.22,12.41870568]
[1732594814449,4.698849,237.32,237.22,17.01786498]
[1732594814450,12.80246498,237.3,237.22,17.01786498]
[1732594814766,13.28761398,237.32,237.24,12.80246498]
[1732594815142,12.80246498,237.3,237.24,12.80246498]
[1732594815560,12.80246498,237.3,237.22,4.2154]
[1732594815740,12.80246498,237.3,237.23,12.80246498]
[1732594816440,12.80246498,237.25,237.18,4.2161]
[1732594816638,12.80246498,237.22,237.14,12.80246498]
[1732594816842,12.80246498,237.21,237.13,12.80246498]
[1732594817151,12.80246498,237.26,237.19,12.80246498]
[1732594817754,12.80246498,237.24,237.17,12.80246498]
[1732594817985,4.2148,237.26,237.15,17.01896498]
[1732594817986,12.80246498,237.23,237.15,17.01896498]
[1732594818269,12.80246498,237.22,237.15,12.80246498]
[1732594819461,12.80246498,237.24,237.15,12.80246498]
[1732594819969,12.80246498,237.24,237.15,17.01896498]
[1732594820463,12.80246498,237.22,237.15,12.80246498]
[1732594820654,12.80246498,237.22,237.13,37.01946498]
[1732594821355,16.5931,237.23,237.17,12.80246498]
[1732594822061,16.5931,237.23,237.15,17.01906498]
[1732594822250,12.80246498,237.22,237.15,12.80246498]
[1732594822452,12.80246498,237.22,237.13,37.01936498]
[1732594823365,20.8084,237.23,237.15,12.80246498]
[1732594823667,16.5931,237.23,237.17,12.80246498]
[1732594823862,16.5931,237.23,237.15,17.01916498]
[1732594823863,20.8084,237.23,237.15,17.01916498]
[1732594825073,16.5931,237.23,237.17,12.80246498]
[1732594825388,23.776884,237.25,237.17,12.80246498]
[1732594825558,23.776884,237.25,237.19,12.80246498]
[1732594826188,12.80246498,237.24,237.17,12.80246498]
[1732594826371,17.01756498,237.24,237.15,12.80246498]
[1732594829161,17.01756498,237.24,237.15,17.01906498]
[1732594829361,17.01756498,237.24,237.17,12.80246498]
[1732594830169,23.776884,237.27,237.21,12.80246498]
[1732594830370,27.991484,237.27,237.21,12.80246498]
[1732594830766,4.2146,237.27,237.21,12.80246498]
[1732594830973,16.5931,237.28,237.21,12.80246498]
[1732594831361,4.2142,237.3,237.23,12.80246498]
[1732594831567,0.485149,237.32,237.27,12.80246498]
[1732594833305,0.485149,237.32,237.29,12.80246498]
[1732594833892,0.485149,237.32,237.31,12.80246498]
[1732594834085,0.485149,237.32,237.29,12.80246498]
[1732594835203,0.485149,237.32,237.27,12.80246498]
[1732594835500,0.485149,237.32,237.27,17.01696498]
[1732594835690,0.485149,237.32,237.27,12.80246498]
[1732594836502,0.485149,237.32,237.24,4.2149]
[1732594836807,0.485149,237.32,237.25,8.19090127]
[1732594838202,8.19090127,237.31,237.24,20.0]
[1732594838498,8.19090127,237.31,237.23,8.19090127]
[1732594838678,12.40480127,237.31,237.23,12.40620127]
[1732594838877,8.19090127,237.31,237.23,12.40620127]
[1732594839189,0.485149,237.32,237.23,12.40620127]
[1732594839390,4.698849,237.32,237.25,8.19090127]
[1732594839585,0.485149,237.32,237.25,8.19090127]
[1732594840779,0.485149,237.32,237.25,12.40570127]
[1732594842498,12.88975027,237.32,237.23,8.19090127]
[1732594843193,8.19090127,237.3,237.23,8.19090127]
[1732594843580,8.19090127,237.3,237.19,0.12549]
[1732594843581,8.19090127,237.3,237.21,8.19090127]
[1732594843902,8.19090127,237.28,237.19,32.40670127]
[1732594844387,8.19090127,237.26,237.19,32.40670127]
[1732594846482,8.19090127,237.24,237.19,20.0]
[1732594846705,8.19090127,237.24,237.17,20.0]
[1732594846901,8.19090127,237.24,237.18,20.0]
[1732594847517,8.19090127,237.24,237.17,8.19090127]
[1732594848206,8.19090127,237.24,237.17,12.40720127]
[1732594849402,8.19090127,237.28,237.21,8.19090127]
[1732594849801,12.40530127,237.28,237.21,8.19090127]
[1732594850496,8.19090127,237.26,237.17,4.2163]
[1732594850701,8.19090127,237.24,237.17,4.2163]
[1732594851107,8.19090127,237.22,237.15,4.2165]
[1732594851418,23.776884,237.21,237.12,8.19090127]
[1732594851628,8.19090127,237.2,237.12,8.19090127]
[1732594851810,8.19090127,237.18,237.12,8.19090127]
[1732594852525,12.81595595,237.18,237.11,12.81595595]
[1732594852904,12.81595595,237.18,237.1,4.2176]
[1732594853305,12.81595595,237.18,237.11,12.81595595]
[1732594853511,32.53705595,237.2,237.11,12.81595595]
[1732594853723,28.32115595,237.2,237.11,12.81595595]
[1732594855428,28.32115595,237.2,237.12,4.2172]
[1732594856031,32.53695595,237.2,237.12,4.2172]
[1732594856334,23.776884,237.19,237.11,12.81595595]
[1732594856832,23.776884,237.19,237.11,17.03335595]
[1732594857412,27.992884,237.19,237.11,17.03335595]
[1732594858129,12.81595595,237.18,237.11,17.03335595]
[1732594860133,23.776884,237.19,237.13,12.81595595]
[1732594860427,15.5052,237.2,237.13,12.81595595]
[1732594862138,15.5052,237.2,237.13,17.03295595]
[1732594862510,28.32115595,237.2,237.13,4.217]
[1732594863332,12.81595595,237.2,237.13,12.81595595]
[1732594864242,12.81595595,237.22,237.13,12.81595595]
[1732594865720,23.776884,237.23,237.15,12.81595595]
[1732594866138,12.81595595,237.24,237.17,12.81595595]
[1732594866641,12.81595595,237.2,237.12,4.2171]
[1732594866847,12.81595595,237.18,237.12,4.2171]
[1732594867143,12.81595595,237.18,237.11,4.2174]
[1732594867436,12.81595595,237.2,237.11,17.03335595]
[1732594867927,12.81595595,237.2,237.13,12.81595595]
[1732594869029,12.81595595,237.2,237.11,4.2174]
[1732594869236,12.81595595,237.2,237.11,17.03335595]
[1732594869544,12.81595595,237.16,237.09,4.2176]
[1732594869731,17.03245595,237.16,237.07,4.2181]
[1732594870728,12.81595595,237.14,237.07,4.2181]
[1732594870927,4.2165,237.16,237.04,17.03455595]
[1732594870928,12.81595595,237.12,237.04,17.03455595]
[1732594871247,12.81595595,237.1,237.0,17.03535595]
[1732594871628,12.81595595,237.08,237.0,17.03535595]
[1732594872130,17.03395595,237.08,237.0,17.03535595]
[1732594872342,8.21085829,237.04,236.98,4.2196]
[1732594872527,8.21085829,237.04,236.95,8.21085829]
[1732594872731,8.21085829,237.02,236.96,4.22]
[1732594873047,8.21085829,237.0,236.94,4.2203]
[1732594873356,8.21085829,237.0,236.93,8.21085829]
[1732594873551,8.21085829,237.02,236.95,8.21085829]
[1732594873718,31.98774229,237.04,236.95,8.21085829]
[1732594873918,8.21085829,237.0,236.93,8.21085829]
[1732594874146,23.776884,236.99,236.89,4.2213]
[1732594874342,8.21085829,236.98,236.91,8.21085829]
[1732594875541,8.21085829,236.98,236.9,4.2211]
[1732594875741,8.21085829,236.98,236.89,8.21085829]
[1732594875742,8.21085829,236.96,236.81,12.39695518]
[1732594876051,8.21085829,236.94,236.86,8.21085829]
[1732594876224,8.21085829,236.9,236.82,12.43345829]
[1732594876425,12.84587229,236.9,236.82,17.06847229]
[1732594876648,12.84587229,236.88,236.82,4.2226]
[1732594877031,12.84587229,236.88,236.8,17.06867229]
[1732594877246,12.84587229,236.9,236.82,12.84587229]
[1732594878838,12.84587229,236.9,236.82,17.06827229]
[1732594879943,12.84587229,236.88,236.83,20.0]
[1732594880854,12.84587229,236.88,236.77,4.34899]
[1732594880855,12.84587229,236.86,236.78,32.84587229]
[1732594881158,12.84587229,236.8,236.73,17.06997229]
[1732594881354,12.84587229,236.8,236.73,4.2241]
[1732594881552,12.84587229,236.78,236.69,17.07067229]
[1732594881733,12.84587229,236.74,236.68,4.225]
[1732594882057,12.84587229,236.74,236.66,25.074794]
[1732594882445,12.84587229,236.76,236.68,12.84587229]
[1732594882650,4.2234,236.78,236.7,12.84587229]
[1732594882651,12.84587229,236.78,236.7,12.84587229]
[1732594882839,12.84587229,236.78,236.72,12.84587229]
[1732594883153,12.84587229,236.76,236.68,12.84587229]
[1732594883329,12.84587229,236.72,236.66,8.00362171]
[1732594883754,12.84587229,236.7,236.66,8.00362171]
[1732594883937,0.12549,236.78,236.66,8.00362171]
[1732594883938,12.84587229,236.72,236.66,8.00362171]
[1732594884258,12.84587229,236.74,236.67,4.2252]
[1732594885961,12.84587229,236.72,236.66,8.00362171]
[1732594886139,12.84587229,236.7,236.66,8.00362171]
[1732594886451,12.84587229,236.73,236.66,8.00362171]
[1732594886754,12.84587229,236.73,236.66,20.849494]
[1732594888061,12.84587229,236.75,236.66,25.074894]
[1732594888366,12.84587229,236.79,236.71,12.84587229]
[1732594888666,12.84587229,236.8,236.73,12.84587229]
[1732594888968,17.06827229,236.83,236.75,12.84587229]
[1732594889463,17.06827229,236.83,236.76,12.84587229]
[1732594889866,12.84587229,236.83,236.76,12.84587229]
[1732594890166,12.84587229,236.86,236.79,12.84587229]
[1732594890470,12.84587229,236.92,236.85,12.84587229]
[1732594890667,12.84587229,236.94,236.87,12.84587229]
[1732594891042,17.06637229,236.94,236.86,12.84587229]
[1732594891237,23.70217229,236.96,236.88,12.84587229]
[1732594891444,12.84587229,236.94,236.86,12.84587229]
[1732594892166,12.84587229,236.92,236.84,32.84587229]
[1732594892368,12.84587229,236.92,236.84,37.06797229]
[1732594892781,12.84587229,236.94,236.86,12.84587229]
[1732594893086,23.776884,236.93,236.86,12.84587229]
[1732594893571,12.84587229,236.94,236.86,12.84587229]
[1732594894182,12.84587229,236.91,236.83,12.84587229]
[1732594894474,12.84587229,236.87,236.8,4.2229]
[1732594895173,12.84587229,236.87,236.79,12.84587229]
[1732594895362,23.776884,236.86,236.79,12.84587229]
[1732594896461,12.84587229,236.85,236.78,4.2232]
[1732594897078,10.5516,236.93,236.78,4.2232]
[1732594897079,12.84587229,236.89,236.81,12.84587229]
[1732594897276,12.84587229,236.91,236.83,12.84587229]
[1732594897477,12.84587229,236.93,236.85,12.84587229]
[1732594898667,23.776884,236.92,236.85,17.06787229]
[1732594898855,12.84587229,236.93,236.85,17.06787229]
[1732594900373,12.84587229,236.93,236.79,0.25098]
[1732594900374,12.84587229,236.91,236.83,12.84587229]
[1732594900578,12.84587229,236.87,236.8,4.2229]
[1732594900986,12.84587229,236.87,236.77,12.84587229]
[1732594901485,12.84587229,236.89,236.81,12.84587229]
[1732594902581,12.84587229,236.89,236.81,17.06857229]
[1732594902964,12.84587229,236.83,236.74,4.2239]
[1732594903177,12.84587229,236.81,236.73,12.84587229]
[1732594903386,12.84587229,236.81,236.73,17.06997229]
[1732594904091,12.84587229,236.79,236.71,12.84587229]
[1732594904893,12.84587229,236.79,236.72,4.2244]
[1732594905266,12.84587229,236.81,236.73,12.84587229]
[1732594905485,12.84587229,236.81,236.73,32.84587229]
[1732594906094,23.776884,236.8,236.73,32.84587229]
[1732594906671,12.84587229,236.79,236.73,20.0]
[1732594906886,12.84587229,236.79,236.71,12.84587229]
[1732594907268,12.84587229,236.77,236.72,20.0]
[1732594907693,12.84587229,236.77,236.69,23.45087229]
[1732594907896,12.84587229,236.75,236.69,10.605]
[1732594908099,12.84587229,236.71,236.66,12.22902171]
[1732594908310,12.84587229,236.71,236.66,8.00362171]
[1732594909002,17.07047229,236.71,236.66,8.00362171]
[1732594909202,12.84587229,236.71,236.66,8.00362171]
[1732594909420,12.84587229,236.71,236.63,12.84587229]
[1732594909721,12.84587229,236.71,236.63,17.07177229]
[1732594913228,23.776884,236.64,236.6,12.845872]
[1732594913532,23.776884,236.64,236.55,12.84587229]
[1732594913533,12.84587229,236.62,236.55,12.84587229]
[1732594913830,12.84587229,236.62,236.55,17.07317229]
[1732594914018,23.776884,236.63,236.55,17.07317229]
[1732594915405,12.84587229,236.62,236.55,17.07317229]
[1732594916206,23.776884,236.63,236.55,17.07317229]
[1732594916824,12.84587229,236.66,236.55,4.2273]
[1732594917027,12.84587229,236.68,236.6,12.84587229]
[1732594917413,12.84587229,236.68,236.61,4.2263]
[1732594917912,12.84587229,236.72,236.64,12.84587229]
[1732594918120,23.776884,236.71,236.64,12.84587229]
[1732594920033,23.776884,236.71,236.64,17.07157229]
[1732594920928,12.84587229,236.7,236.64,4.2257]
[1732594921114,12.84587229,236.7,236.62,12.84587229]
[1732594921315,12.84587229,236.68,236.61,4.2262]
[1732594921927,4.2235,236.77,236.67,12.84587229]
[1732594922131,12.84587229,236.75,236.67,12.84587229]
[1732594922430,12.84587229,236.73,236.66,4.2253]
[1732594922929,17.06937229,236.77,236.67,12.84587229]
[1732594923133,23.776884,236.76,236.67,12.84587229]
[1732594923322,23.776884,236.74,236.65,12.84587229]
[1732594923519,12.84587229,236.73,236.65,17.07137229]
[1732594923722,23.776884,236.72,236.65,4.2255]
[1732594924240,12.84587229,236.69,236.63,4.2258]
[1732594924445,23.776884,236.7,236.59,6.3285]
[1732594924446,12.84587229,236.67,236.6,4.2263]
[1732594924734,12.84587229,236.69,236.6,4.2263]
[1732594924934,12.84587229,236.65,236.58,4.2267]
[1732594925140,23.776884,236.64,236.58,4.2267]
[1732594926113,23.776884,236.64,236.59,12.84587229]
[1732594926360,23.776884,236.62,236.54,4.2276]
[1732594926537,12.84587229,236.61,236.54,4.2276]
[1732594926845,23.776884,236.6,236.53,17.07357229]
[1732594927643,23.776884,236.62,236.56,12.84587229]
[1732594927939,23.776884,236.62,236.56,17.07297229]
[1732594929330,23.776884,236.62,236.56,4.2271]
[1732594929637,23.776884,236.6,236.54,17.07337229]
[1732594930546,23.776884,236.62,236.54,17.07337229]
[1732594934630,12.84587229,236.61,236.54,24.2275]
[1732594934825,12.84587229,236.57,236.52,4.2278]
[1732594935041,23.776884,236.56,236.51,24.2281]
[1732594935357,23.776884,236.56,236.51,4.2281]
[1732594935547,23.776884,236.58,236.52,12.84587229]
[1732594935842,12.84587229,236.61,236.52,12.84587229]
[1732594936019,23.776884,236.6,236.52,12.84587229]
[1732594937230,23.776884,236.6,236.53,4.2277]
[1732594938058,28.003484,236.6,236.52,17.07377229]
[1732594938866,23.776884,236.6,236.52,17.07377229]
[1732594939951,23.776884,236.58,236.52,17.07377229]
[1732594941877,12.84587229,236.57,236.5,17.55912129]
[1732594942058,23.776884,236.56,236.5,17.55912129]
[1732594942461,12.84587229,236.59,236.5,17.55912129]
[1732594942662,23.776884,236.56,236.5,4.713249]
[1732594943171,23.776884,236.58,236.5,4.713249]
[1732594944770,28.003884,236.58,236.5,4.713249]
[1732594944949,23.776884,236.56,236.5,4.713249]
[1732594946770,28.004084,236.56,236.5,0.485149]
[1732594946973,23.776884,236.54,236.5,0.485149]
[1732594947486,36.62275629,236.51,236.5,0.485149]
[1732594947857,36.87373629,236.51,236.5,0.485149]
[1732594948663,36.62275629,236.51,236.5,0.485149]
[1732594950992,17.07327229,236.55,236.5,0.485149]
[1732594951289,16.4366,236.59,236.5,0.485149]
[1732594951290,12.84587229,236.57,236.5,0.485149]
[1732594952468,23.776884,236.56,236.5,0.485149]
[1732594952989,28.004284,236.56,236.5,0.485149]
[1732594953668,23.776884,236.54,236.5,4.713349]
[1732594953866,10.54960947,236.57,236.53,12.84587229]
[1732594954067,10.54960947,236.57,236.55,12.84587229]
[1732594954281,12.84587229,236.65,236.55,12.84587229]
[1732594954476,12.84587229,236.63,236.56,12.84587229]
[1732594954888,12.84587229,236.63,236.54,12.84587229]
[1732594955092,12.84587229,236.63,236.55,4.2274]
[1732594955394,23.776884,236.6,236.54,17.07337229]
[1732594955575,23.776884,236.62,236.56,12.84587229]
[1732594955975,23.776884,236.63,236.56,12.84587229]
[1732594956587,23.39080983,236.64,236.56,12.84587229]
[1732594956793,23.39080983,236.64,236.59,12.84587229]
[1732594956794,10.54493754,236.64,236.59,12.84587229]
[1732594957092,10.54493754,236.64,236.58,4.2268]
[1732594958190,23.776884,236.63,236.58,4.2268]
[1732594959189,23.776884,236.63,236.57,19.4643]
[1732594959797,23.776884,236.63,236.57,15.2373]
[1732594960178,12.84587229,236.62,236.57,19.4643]
[1732594960697,23.776884,236.61,236.55,12.84587229]
[1732594960989,23.776884,236.61,236.54,4.2274]
[1732594961167,23.776884,236.59,236.51,34.17597229]
[1732594961364,23.776884,236.57,236.51,21.3301]
[1732594961790,23.776884,236.57,236.51,25.5582]
[1732594962297,23.776884,236.57,236.51,38.40407229]
[1732594962790,23.776884,236.59,236.53,12.84587229]
[1732594963380,23.776884,236.57,236.51,34.17597229]
[1732594963678,23.776884,236.57,236.51,15.2373]
[1732594963907,23.776884,236.55,236.5,0.485149]
[1732594965098,12.84587229,236.54,236.5,0.485149]
[1732594965287,23.776884,236.53,236.5,0.485149]
[1732594967004,23.776884,236.51,236.5,0.485149]
[1732594967878,28.004984,236.51,236.5,0.485149]
[1732594968103,23.776884,236.51,236.5,0.485149]
[1732594969683,12.84587229,236.56,236.5,4.713449]
[1732594969982,32.84587229,236.58,236.5,4.713449]
[1732594970480,12.84587229,236.58,236.51,12.84587229]
[1732594970875,20.8551,236.61,236.5,4.713449]
[1732594970876,12.84587229,236.6,236.53,12.84587229]
[1732594971109,12.84587229,236.62,236.53,12.84587229]
[1732594971281,12.84587229,236.62,236.55,12.84587229]
[1732594971687,10.54493754,236.64,236.57,12.84587229]
[1732594971884,10.54493754,236.64,236.59,12.84587229]
[1732594973403,23.776884,236.63,236.59,12.84587229]
[1732594973706,36.62275629,236.63,236.56,12.84587229]
[1732594973895,23.776884,236.63,236.58,12.84587229]
[1732594974314,23.776884,236.63,236.56,12.84587229]
[1732594974499,36.62275629,236.63,236.56,12.84587229]
[1732594975717,36.62275629,236.63,236.56,17.07287229]
[1732594976204,23.776884,236.63,236.56,17.07287229]
[1732594976424,36.62275629,236.63,236.56,17.07287229]
[1732594977208,23.776884,236.63,236.56,17.07287229]
[1732594977812,23.776884,236.63,236.52,33.4234]
[1732594977813,4.2261,236.62,236.53,4.2277]
[1732594978110,23.776884,236.61,236.53,17.07357229]
[1732594979109,28.003184,236.61,236.54,12.84587229]
[1732594979311,23.776884,236.61,236.54,12.84587229]
[1732594979515,23.776884,236.62,236.55,12.84587229]
[1732594980291,23.776884,236.63,236.57,12.84587229]
[1732594981189,12.84587229,236.6,236.52,35.69977229]
[1732594981383,23.776884,236.59,236.53,17.07357229]
[1732594981591,23.776884,236.59,236.54,12.84587229]
[1732594982111,23.776884,236.58,236.52,27.0817]
[1732594982509,23.776884,236.59,236.52,39.92757229]
[1732594982728,23.776884,236.59,236.54,12.84587229]
[1732594982927,23.776884,236.61,236.54,12.84587229]
[1732594983232,23.776884,236.62,236.57,12.84587229]
[1732594983432,36.62275629,236.63,236.55,12.84587229]
[1732594983622,36.62275629,236.63,236.56,12.84587229]
[1732594984337,36.62275629,236.63,236.57,12.84587229]
[1732594984338,23.776884,236.63,236.57,12.84587229]
[1732594985745,23.776884,236.63,236.58,12.84587229]
[1732594986242,23.776884,236.61,236.56,4.2272]
[1732594986432,23.776884,236.61,236.56,17.07307229]
[1732594986829,23.776884,236.62,236.56,17.07307229]
[1732594987019,23.776884,236.63,236.57,12.84587229]
[1732594987227,36.62275629,236.63,236.56,17.07307229]
[1732594988126,23.776884,236.61,236.56,4.2272]
[1732594988329,23.776884,236.61,236.54,12.84587229]
[1732594988544,36.62275629,236.61,236.54,12.84587229]
[1732594988926,23.776884,236.58,236.53,4.2277]
[1732594990441,23.776884,236.58,236.52,39.92767229]
[1732594990637,23.776884,236.58,236.52,17.07377229]
[1732594991048,23.776884,236.58,236.52,4.2279]
[1732594992127,23.776884,236.58,236.52,17.07377229]
[1732594992325,23.776884,236.58,236.53,12.84587229]
[1732594992540,23.776884,236.59,236.53,12.84587229]
[1732594993129,23.776884,236.59,236.53,17.07357229]
[1732594993645,23.776884,236.61,236.53,17.07357229]
[1732594994019,23.776884,236.6,236.53,17.07357229]
[1732594994852,28.003384,236.6,236.53,17.07357229]
[1732594995021,23.776884,236.6,236.53,17.07357229]
[1732594996047,23.776884,236.6,236.55,12.84587229]
[1732594996219,13.03043754,236.64,236.57,12.84587229]
[1732594996440,13.03043754,236.64,236.59,12.84587229]
[1732594997257,13.03043754,236.64,236.63,12.84587229]
[1732594998365,2.4855,236.64,236.63,12.97136229]
[1732594998555,2.4855,236.64,236.63,35.94272458]
[1732594998725,16.4786,236.84,236.68,0.12549]
[1732594998726,12.84587229,236.82,236.68,0.12549]
[1732594998926,12.84587229,236.82,236.74,17.06977229]
[1732594999151,12.84587229,236.8,236.72,17.07007229]
[1732594999363,12.84587229,236.79,236.72,17.07007229]
[1732594999651,4.2226,236.82,236.7,4.2246]
[1732594999652,12.84587229,236.76,236.7,4.2246]
[1732595000044,12.84587229,236.76,236.69,6.4283]
[1732595000249,12.84587229,236.72,236.68,20.0]
[1732595000623,23.776884,236.71,236.68,20.0]
[1732595000823,23.776884,236.71,236.65,12.84587229]
[1732595001026,36.62275629,236.71,236.64,32.20767229]
[1732595001256,36.62275629,236.71,236.64,4.2256]
[1732595001462,36.62275629,236.71,236.64,12.84587229]
[1732595002455,23.776884,236.71,236.64,12.84587229]
[1732595002678,12.84587229,236.78,236.7,12.84587229]
[1732595002857,12.84587229,236.79,236.71,12.84587229]
[1732595003172,12.84587229,236.77,236.7,17.07057229]
[1732595003529,12.84587229,236.75,236.68,17.07077229]
[1732595003950,23.776884,236.74,236.68,17.07077229]
[1732595004156,23.776884,236.76,236.68,17.07077229]
[1732595004331,12.84587229,236.75,236.68,17.07077229]
[1732595004532,23.776884,236.74,236.68,17.07077229]
[1732595005657,23.776884,236.76,236.71,12.84587229]
[1732595005954,23.776884,236.79,236.71,12.84587229]
[1732595006455,36.62275629,236.79,236.71,12.84587229]
[1732595007632,36.62275629,236.79,236.71,17.07037229]
[1732595008442,23.776884,236.79,236.73,12.84587229]